[Event "*** SCC Grand Prix: Titled Tuesday Blitz"]
[Site "Chess.com"]
[Date "2020.06.02"]
[Round "8"]
[White "pfalcon1949"]
[Black "Zmof"]
[Result "0-1"]
[WhiteElo "2007"]
[BlackElo "2213"]
[TimeControl "180+1"]
[EndTime "11:36:14 PDT"]
[Termination "Zmof won by checkmate"]

1. d4 {[%clk 0:02:40.7]} 1... Nf6 {[%clk 0:02:57.8]} 2. c4 {[%clk 0:02:39.7]}
2... e6 {[%clk 0:02:57.6]} 3. Nc3 {[%clk 0:02:39.8]} 3... Bb4 {[%clk 0:02:57.6]}
4. a3 {[%clk 0:02:39]} 4... Bxc3+ {[%clk 0:02:57]} 5. bxc3 {[%clk 0:02:39.9]}
5... b6 {[%clk 0:02:56.1]} 6. e3 {[%clk 0:02:39.3]} 6... Ba6 {[%clk 0:02:53.4]}
7. Bd3 {[%clk 0:02:37.2]} 7... O-O {[%clk 0:02:52.2]} 8. Nh3 {[%clk 0:02:36.8]}
8... c5 {[%clk 0:02:52]} 9. O-O {[%clk 0:02:34.9]} 9... Nc6 {[%clk 0:02:48.6]}
10. e4 {[%clk 0:02:34.4]} 10... d6 {[%clk 0:02:37]} 11. f4 {[%clk 0:02:31.3]}
11... cxd4 {[%clk 0:02:22.1]} 12. cxd4 {[%clk 0:02:28.3]} 12... Nxd4 {[%clk
0:02:22.2]} 13. e5 {[%clk 0:02:28]} 13... dxe5 {[%clk 0:02:20.3]} 14. fxe5
{[%clk 0:02:27.9]} 14... Nf5 {[%clk 0:01:43.7]} 15. exf6 {[%clk 0:02:17.5]}
15... Qd4+ {[%clk 0:01:42.9]} 16. Kh1 {[%clk 0:02:14.4]} 16... Qxa1 {[%clk
0:01:42.9]} 17. fxg7 {[%clk 0:01:51.9]} 17... Qxg7 {[%clk 0:01:40.5]} 18. Qh5
{[%clk 0:01:27.5]} 18... Qg6 {[%clk 0:01:29.7]} 19. Qe2 {[%clk 0:01:24.6]} 19...
Rad8 {[%clk 0:01:18.7]} 20. Bb2 {[%clk 0:01:24.4]} 20... Bb7 {[%clk 0:00:39.3]}
21. Nf4 {[%clk 0:01:04.2]} 21... Qh6 {[%clk 0:00:38.7]} 22. Qg4+ {[%clk
0:00:58.3]} 22... Ng7 {[%clk 0:00:34.2]} 23. Nh5 {[%clk 0:00:43.2]} 23... f5
{[%clk 0:00:29.1]} 24. Qg3 {[%clk 0:00:32.9]} 24... Rxd3 {[%clk 0:00:26.7]} 25.
Qc7 {[%clk 0:00:23.8]} 25... Bxg2+ {[%clk 0:00:19.3]} 26. Kxg2 {[%clk
0:00:20.9]} 26... Rd2+ {[%clk 0:00:19.8]} 27. Kg1 {[%clk 0:00:17.2]} 27... Rxb2
{[%clk 0:00:18.9]} 28. Nxg7 {[%clk 0:00:15.4]} 28... Qg6+ {[%clk 0:00:16.7]} 29.
Qg3 {[%clk 0:00:10.5]} 29... Qxg3+ {[%clk 0:00:16.3]} 30. hxg3 {[%clk
0:00:10.7]} 30... Kxg7 {[%clk 0:00:17]} 31. Rf3 {[%clk 0:00:10.3]} 31... Rd8
{[%clk 0:00:16.3]} 32. Rc3 {[%clk 0:00:10.4]} 32... Rd1# {[%clk 0:00:16.2]} 0-1

[Event "*** SCC Grand Prix: Titled Tuesday Blitz"]
[Site "Chess.com"]
[Date "2020.06.02"]
[Round "8"]
[White "MilanJeremic"]
[Black "Lovinski"]
[Result "0-1"]
[WhiteElo "2237"]
[BlackElo "2367"]
[TimeControl "180+1"]
[EndTime "11:36:16 PDT"]
[Termination "Lovinski won by resignation"]

1. d4 {[%clk 0:03:00.9]} 1... d5 {[%clk 0:02:59.8]} 2. Nf3 {[%clk 0:02:59.8]}
2... e6 {[%clk 0:02:59.6]} 3. g3 {[%clk 0:02:59.5]} 3... Nf6 {[%clk 0:02:59.4]}
4. Bg2 {[%clk 0:02:59.3]} 4... b5 {[%clk 0:02:59.3]} 5. O-O {[%clk 0:02:58.5]}
5... Be7 {[%clk 0:02:57.2]} 6. Bg5 {[%clk 0:02:57.7]} 6... O-O {[%clk
0:02:55.8]} 7. Bxf6 {[%clk 0:02:55.8]} 7... Bxf6 {[%clk 0:02:55.7]} 8. c3 {[%clk
0:02:55.7]} 8... Bb7 {[%clk 0:02:55.4]} 9. e3 {[%clk 0:02:55]} 9... Nd7 {[%clk
0:02:54.3]} 10. Nbd2 {[%clk 0:02:54.8]} 10... c5 {[%clk 0:02:54.1]} 11. Re1
{[%clk 0:02:54.5]} 11... a5 {[%clk 0:02:52]} 12. h4 {[%clk 0:02:54.1]} 12... b4
{[%clk 0:02:50.5]} 13. a3 {[%clk 0:02:51.7]} 13... bxc3 {[%clk 0:02:46.6]} 14.
bxc3 {[%clk 0:02:50.9]} 14... Be7 {[%clk 0:02:36.5]} 15. a4 {[%clk 0:02:46.2]}
15... Rb8 {[%clk 0:02:33.6]} 16. Nf1 {[%clk 0:02:40.6]} 16... Bd6 {[%clk
0:02:28]} 17. N1h2 {[%clk 0:02:39.6]} 17... Nf6 {[%clk 0:02:25.8]} 18. Bf1
{[%clk 0:02:33.3]} 18... Ne4 {[%clk 0:02:21]} 19. Rc1 {[%clk 0:02:28.7]} 19...
Bc6 {[%clk 0:02:17.8]} 20. Bd3 {[%clk 0:02:23.2]} 20... Qd7 {[%clk 0:02:12.2]}
21. Bxe4 {[%clk 0:02:18.1]} 21... dxe4 {[%clk 0:02:13.1]} 22. Nd2 {[%clk
0:02:13.2]} 22... Bxa4 {[%clk 0:02:09.6]} 23. Qg4 {[%clk 0:02:11.4]} 23... f5
{[%clk 0:02:09.5]} 24. Qh5 {[%clk 0:02:06.5]} 24... cxd4 {[%clk 0:02:02.5]} 25.
cxd4 {[%clk 0:02:04.2]} 25... Bb4 {[%clk 0:02:01.4]} 26. Nc4 {[%clk 0:01:59.6]}
26... Bxe1 {[%clk 0:01:58.8]} 27. Rxe1 {[%clk 0:01:58.8]} 27... Qd5 {[%clk
0:01:35.9]} 28. Ne5 {[%clk 0:01:55.7]} 28... Be8 {[%clk 0:01:36.1]} 29. Qe2
{[%clk 0:01:51.6]} 29... a4 {[%clk 0:01:35.9]} 30. Ra1 {[%clk 0:01:49.5]} 30...
Ra8 {[%clk 0:01:34.8]} 31. Ra3 {[%clk 0:01:45.2]} 31... Bb5 {[%clk 0:01:34.6]}
32. Qd1 {[%clk 0:01:37.3]} 32... Rfc8 {[%clk 0:01:29.4]} 33. g4 {[%clk
0:01:30.9]} 33... Be8 {[%clk 0:01:27.6]} 34. gxf5 {[%clk 0:01:29.4]} 34... exf5
{[%clk 0:01:28.5]} 35. Rxa4 {[%clk 0:01:24.1]} 35... Bxa4 {[%clk 0:01:27.3]} 36.
Qh5 {[%clk 0:01:20.8]} 36... Be8 {[%clk 0:01:27.7]} 37. Qxf5 {[%clk 0:01:20.2]}
37... Bg6 {[%clk 0:01:13]} 38. Qg5 {[%clk 0:01:15.1]} 38... Rf8 {[%clk
0:01:03.8]} 39. Nhg4 {[%clk 0:01:14]} 39... Rf5 {[%clk 0:00:49.2]} 40. Qe7
{[%clk 0:01:12.9]} 40... Raf8 {[%clk 0:00:49.6]} 41. h5 {[%clk 0:01:00.1]} 41...
Bxh5 {[%clk 0:00:46]} 42. Nd7 {[%clk 0:00:52.8]} 42... Bxg4 {[%clk 0:00:39.1]}
43. Nxf8 {[%clk 0:00:51.5]} 43... Rxf8 {[%clk 0:00:40]} 44. Qh4 {[%clk
0:00:47.5]} 44... Bf3 {[%clk 0:00:39.3]} 45. Kh2 {[%clk 0:00:45.9]} 45... h6
{[%clk 0:00:37.2]} 0-1

[Event "*** SCC Grand Prix: Titled Tuesday Blitz"]
[Site "Chess.com"]
[Date "2020.06.02"]
[Round "8"]
[White "harperchesstt"]
[Black "sopo-tereladze"]
[Result "0-1"]
[WhiteElo "2177"]
[BlackElo "2335"]
[TimeControl "180+1"]
[EndTime "11:36:16 PDT"]
[Termination "sopo-tereladze won by checkmate"]

1. e4 {[%clk 0:03:00.9]} 1... e5 {[%clk 0:02:59.9]} 2. Nf3 {[%clk 0:02:55.7]}
2... Nc6 {[%clk 0:02:59.7]} 3. Bc4 {[%clk 0:02:54.9]} 3... Nf6 {[%clk 0:03:00]}
4. d3 {[%clk 0:02:54.3]} 4... Be7 {[%clk 0:03:00.2]} 5. O-O {[%clk 0:02:53.2]}
5... d6 {[%clk 0:03:00.4]} 6. a4 {[%clk 0:02:53.5]} 6... O-O {[%clk 0:03:01.3]}
7. a5 {[%clk 0:02:52.7]} 7... a6 {[%clk 0:02:59.1]} 8. c3 {[%clk 0:02:50.6]}
8... Be6 {[%clk 0:02:57.7]} 9. Nbd2 {[%clk 0:02:50.2]} 9... Qd7 {[%clk
0:02:56.2]} 10. Re1 {[%clk 0:02:49]} 10... Rae8 {[%clk 0:02:34.9]} 11. Nf1
{[%clk 0:02:26.2]} 11... Bxc4 {[%clk 0:02:15.2]} 12. dxc4 {[%clk 0:02:25.6]}
12... Nh5 {[%clk 0:02:13.8]} 13. Nxe5 {[%clk 0:02:08.7]} 13... Nxe5 {[%clk
0:02:14.7]} 14. Qxh5 {[%clk 0:02:08.3]} 14... Nxc4 {[%clk 0:02:13.7]} 15. Ng3
{[%clk 0:02:03.5]} 15... g6 {[%clk 0:02:12.5]} 16. Qd5 {[%clk 0:02:02.4]} 16...
Qe6 {[%clk 0:01:58.8]} 17. Qxb7 {[%clk 0:01:51.5]} 17... Bf6 {[%clk 0:01:43.6]}
18. Qxa6 {[%clk 0:01:43.9]} 18... h5 {[%clk 0:01:23.1]} 19. Bh6 {[%clk 0:01:30]}
19... Ra8 {[%clk 0:01:19.8]} 20. Qc6 {[%clk 0:01:16.3]} 20... Rfb8 {[%clk
0:01:20.7]} 21. a6 {[%clk 0:01:05.7]} 21... Bd8 {[%clk 0:01:07]} 22. a7 {[%clk
0:00:59.5]} 22... Rc8 {[%clk 0:01:07]} 23. Nf1 {[%clk 0:00:41.2]} 23... Nxb2
{[%clk 0:01:04.6]} 24. Reb1 {[%clk 0:00:38.9]} 24... Nd3 {[%clk 0:00:59.6]} 25.
Qxa8 {[%clk 0:00:25.7]} 25... Rxa8 {[%clk 0:01:00.5]} 26. Rb8 {[%clk 0:00:25.1]}
26... Qxe4 {[%clk 0:00:57.1]} 27. Bg5 {[%clk 0:00:17.3]} 27... Kg7 {[%clk
0:00:49.4]} 28. Bxd8 {[%clk 0:00:15.6]} 28... Qe2 {[%clk 0:00:29.3]} 29. Rxa8
{[%clk 0:00:12.7]} 29... Qxf2+ {[%clk 0:00:28.3]} 30. Kh1 {[%clk 0:00:13.2]}
30... Nf4 {[%clk 0:00:26.9]} 31. Bf6+ {[%clk 0:00:07.8]} 31... Kxf6 {[%clk
0:00:25.3]} 32. Ra2 {[%clk 0:00:07.8]} 32... Qxf1# {[%clk 0:00:23.5]} 0-1

[Event "*** SCC Grand Prix: Titled Tuesday Blitz"]
[Site "Chess.com"]
[Date "2020.06.02"]
[Round "8"]
[White "Matibar"]
[Black "JosefineHeinemann"]
[Result "1-0"]
[WhiteElo "2706"]
[BlackElo "2572"]
[TimeControl "180+1"]
[EndTime "11:36:17 PDT"]
[Termination "Matibar won by resignation"]

1. e4 {[%clk 0:02:47.3]} 1... e5 {[%clk 0:02:58.9]} 2. Nf3 {[%clk 0:02:40.7]}
2... Nc6 {[%clk 0:02:58.8]} 3. Bb5 {[%clk 0:02:40.7]} 3... a6 {[%clk 0:02:59.1]}
4. Ba4 {[%clk 0:02:40.7]} 4... Nf6 {[%clk 0:02:59.3]} 5. d3 {[%clk 0:02:40.6]}
5... b5 {[%clk 0:02:57.3]} 6. Bb3 {[%clk 0:02:40.3]} 6... Bc5 {[%clk 0:02:58]}
7. Nc3 {[%clk 0:02:33.2]} 7... O-O {[%clk 0:02:51.8]} 8. Nd5 {[%clk 0:02:30.7]}
8... Rb8 {[%clk 0:02:42.2]} 9. Bg5 {[%clk 0:02:26.9]} 9... Be7 {[%clk
0:02:41.9]} 10. Nxe7+ {[%clk 0:02:23.3]} 10... Qxe7 {[%clk 0:02:42.8]} 11. c3
{[%clk 0:02:14.9]} 11... d6 {[%clk 0:02:41.3]} 12. h3 {[%clk 0:02:13.1]} 12...
Be6 {[%clk 0:02:37.6]} 13. O-O {[%clk 0:02:11.4]} 13... Na5 {[%clk 0:02:32.5]}
14. Bc2 {[%clk 0:02:05.6]} 14... c5 {[%clk 0:02:31.6]} 15. Re1 {[%clk
0:02:02.6]} 15... h6 {[%clk 0:02:30.9]} 16. Be3 {[%clk 0:01:57.2]} 16... Nc6
{[%clk 0:02:30.3]} 17. a3 {[%clk 0:01:54.7]} 17... Rfd8 {[%clk 0:02:20.5]} 18.
b4 {[%clk 0:01:52]} 18... a5 {[%clk 0:02:08.2]} 19. Qb1 {[%clk 0:01:48.4]} 19...
a4 {[%clk 0:01:59]} 20. Qb2 {[%clk 0:01:46]} 20... Rdc8 {[%clk 0:01:50.5]} 21.
Rac1 {[%clk 0:01:40]} 21... Nh5 {[%clk 0:01:48.2]} 22. d4 {[%clk 0:01:39]} 22...
cxd4 {[%clk 0:01:42.8]} 23. cxd4 {[%clk 0:01:39]} 23... exd4 {[%clk 0:01:42.8]}
24. Nxd4 {[%clk 0:01:38.9]} 24... Nxd4 {[%clk 0:01:39.6]} 25. Qxd4 {[%clk
0:01:37.3]} 25... Rc4 {[%clk 0:01:31.9]} 26. Qd1 {[%clk 0:01:37]} 26... Nf6
{[%clk 0:01:13.1]} 27. Bd3 {[%clk 0:01:36.6]} 27... Rxc1 {[%clk 0:01:11.5]} 28.
Qxc1 {[%clk 0:01:37.5]} 28... Rc8 {[%clk 0:01:09.3]} 29. Qd1 {[%clk 0:01:34.2]}
29... Bc4 {[%clk 0:01:09.3]} 30. Bb1 {[%clk 0:01:34.1]} 30... Nd7 {[%clk
0:01:03.3]} 31. Qg4 {[%clk 0:01:33]} 31... Be6 {[%clk 0:00:58]} 32. Qg3 {[%clk
0:01:32.1]} 32... Kh8 {[%clk 0:00:54.1]} 33. Bd4 {[%clk 0:01:26.8]} 33... f6
{[%clk 0:00:48.5]} 34. f4 {[%clk 0:01:22.3]} 34... Bg8 {[%clk 0:00:43.5]} 35.
Kh2 {[%clk 0:01:22]} 35... Qf7 {[%clk 0:00:37.6]} 36. Bd3 {[%clk 0:01:17]} 36...
Qb3 {[%clk 0:00:36.6]} 37. Bxb5 {[%clk 0:01:15.5]} 37... Nf8 {[%clk 0:00:34.3]}
38. e5 {[%clk 0:01:08.8]} 38... dxe5 {[%clk 0:00:31.6]} 39. fxe5 {[%clk
0:01:08.7]} 39... Qxg3+ {[%clk 0:00:30.8]} 40. Kxg3 {[%clk 0:01:08.3]} 40...
fxe5 {[%clk 0:00:31.1]} 41. Bxe5 {[%clk 0:01:06.8]} 41... Bb3 {[%clk 0:00:30.9]}
42. Re3 {[%clk 0:00:55.4]} 42... Ng6 {[%clk 0:00:29.8]} 43. Bd4 {[%clk
0:00:54.8]} 43... Rd8 {[%clk 0:00:28.9]} 44. Re8+ {[%clk 0:00:55]} 44... Rxe8
{[%clk 0:00:28.4]} 45. Bxe8 {[%clk 0:00:55.9]} 45... Ne7 {[%clk 0:00:28.8]} 46.
Kf4 {[%clk 0:00:51.9]} 46... Nd5+ {[%clk 0:00:19.6]} 47. Ke5 {[%clk 0:00:51.8]}
47... Nf6 {[%clk 0:00:20.1]} 48. Bc6 {[%clk 0:00:49.7]} 1-0

[Event "*** SCC Grand Prix: Titled Tuesday Blitz"]
[Site "Chess.com"]
[Date "2020.06.02"]
[Round "8"]
[White "oykuince"]
[Black "gui_borba"]
[Result "0-1"]
[WhiteElo "2083"]
[BlackElo "2317"]
[TimeControl "180+1"]
[EndTime "11:36:19 PDT"]
[Termination "gui_borba won by resignation"]

1. e4 {[%clk 0:03:00.9]} 1... c6 {[%clk 0:03:00.2]} 2. d4 {[%clk 0:02:59.4]}
2... d5 {[%clk 0:03:01.1]} 3. Nc3 {[%clk 0:02:55.2]} 3... dxe4 {[%clk
0:03:00.7]} 4. Nxe4 {[%clk 0:02:55.1]} 4... Nf6 {[%clk 0:03:01.6]} 5. Nxf6+
{[%clk 0:02:53.5]} 5... exf6 {[%clk 0:03:02.5]} 6. Nf3 {[%clk 0:02:47.8]} 6...
Bd6 {[%clk 0:03:02.8]} 7. Bd3 {[%clk 0:02:46.9]} 7... O-O {[%clk 0:03:03.7]} 8.
c3 {[%clk 0:02:43.3]} 8... Re8+ {[%clk 0:03:03.8]} 9. Be3 {[%clk 0:02:42.8]}
9... Na6 {[%clk 0:03:04.2]} 10. Bc2 {[%clk 0:02:38.8]} 10... Nc7 {[%clk
0:03:00.7]} 11. Qd3 {[%clk 0:02:25.3]} 11... g6 {[%clk 0:03:00.2]} 12. Qd2
{[%clk 0:02:21]} 12... Nd5 {[%clk 0:02:50.2]} 13. O-O-O {[%clk 0:02:18.8]} 13...
f5 {[%clk 0:02:43.3]} 14. Bh6 {[%clk 0:02:06.3]} 14... b5 {[%clk 0:02:30.3]} 15.
h4 {[%clk 0:01:48]} 15... f6 {[%clk 0:02:15.6]} 16. h5 {[%clk 0:01:28.5]} 16...
g5 {[%clk 0:02:15]} 17. Kb1 {[%clk 0:01:28.2]} 17... Bf4 {[%clk 0:01:41.1]} 18.
Qd3 {[%clk 0:01:23.3]} 18... g4 {[%clk 0:01:39.6]} 19. Bxf4 {[%clk 0:01:08.8]}
19... Nxf4 {[%clk 0:01:40.5]} 20. Qd2 {[%clk 0:01:09]} 20... Qd6 {[%clk
0:01:39.6]} 21. Nh4 {[%clk 0:01:03.9]} 21... Re2 {[%clk 0:01:37.6]} 22. Qc1
{[%clk 0:00:59.9]} 22... Rxf2 {[%clk 0:01:34.1]} 23. Rhe1 {[%clk 0:00:41.3]}
23... Bd7 {[%clk 0:01:10.8]} 24. Qe3 {[%clk 0:00:32.8]} 24... Rxc2 {[%clk
0:00:53.6]} 25. Kxc2 {[%clk 0:00:31.7]} 25... Nd5 {[%clk 0:00:49.9]} 26. Qh6
{[%clk 0:00:29.9]} 26... a5 {[%clk 0:00:43.8]} 27. Rf1 {[%clk 0:00:19.1]} 27...
f4 {[%clk 0:00:42.2]} 28. Rde1 {[%clk 0:00:18.8]} 28... Ne3+ {[%clk 0:00:27.1]}
29. Rxe3 {[%clk 0:00:18.6]} 29... fxe3 {[%clk 0:00:28]} 30. Rxf6 {[%clk
0:00:18.6]} 30... Qe7 {[%clk 0:00:28.3]} 31. Nf5 {[%clk 0:00:17]} 31... Bxf5+
{[%clk 0:00:28.2]} 32. Rxf5 {[%clk 0:00:17.2]} 32... Qe4+ {[%clk 0:00:25.9]} 33.
Kb3 {[%clk 0:00:15.3]} 33... Qxf5 {[%clk 0:00:26.8]} 34. Qxc6 {[%clk 0:00:15.1]}
34... Rf8 {[%clk 0:00:23]} 0-1

[Event "*** SCC Grand Prix: Titled Tuesday Blitz"]
[Site "Chess.com"]
[Date "2020.06.02"]
[Round "8"]
[White "ehrenfeld"]
[Black "CrazyMartian"]
[Result "1-0"]
[WhiteElo "2444"]
[BlackElo "2298"]
[TimeControl "180+1"]
[EndTime "11:36:22 PDT"]
[Termination "ehrenfeld won on time"]

1. e4 {[%clk 0:03:00.9]} 1... c5 {[%clk 0:02:59.7]} 2. d3 {[%clk 0:03:00.6]}
2... d5 {[%clk 0:02:59.4]} 3. exd5 {[%clk 0:02:59.9]} 3... Nf6 {[%clk
0:02:57.6]} 4. c4 {[%clk 0:02:59.4]} 4... e6 {[%clk 0:02:57.3]} 5. dxe6 {[%clk
0:02:59.6]} 5... Bxe6 {[%clk 0:02:57.2]} 6. Nc3 {[%clk 0:03:00]} 6... Nc6 {[%clk
0:02:57]} 7. Be2 {[%clk 0:02:59.9]} 7... a6 {[%clk 0:02:56.9]} 8. Nf3 {[%clk
0:02:58.6]} 8... Bd6 {[%clk 0:02:57]} 9. O-O {[%clk 0:02:57.8]} 9... Qc7 {[%clk
0:02:57]} 10. Bg5 {[%clk 0:02:22.9]} 10... Ng4 {[%clk 0:02:49.2]} 11. h3 {[%clk
0:02:19.6]} 11... h6 {[%clk 0:02:28.3]} 12. Bd2 {[%clk 0:02:11]} 12... h5 {[%clk
0:02:26.5]} 13. Ne4 {[%clk 0:02:08.5]} 13... Nd4 {[%clk 0:02:13.6]} 14. g3
{[%clk 0:01:29.9]} 14... Ne5 {[%clk 0:01:25.8]} 15. Nxd4 {[%clk 0:01:14.8]}
15... cxd4 {[%clk 0:01:23.1]} 16. f4 {[%clk 0:01:09.9]} 16... Nc6 {[%clk
0:01:09.8]} 17. f5 {[%clk 0:01:00]} 17... Bd7 {[%clk 0:00:56.6]} 18. Nxd6+
{[%clk 0:00:52.1]} 18... Qxd6 {[%clk 0:00:56.5]} 19. Bf4 {[%clk 0:00:52.3]}
19... Qc5 {[%clk 0:00:51.1]} 20. Bf3 {[%clk 0:00:45.5]} 20... O-O-O {[%clk
0:00:44.8]} 21. Be4 {[%clk 0:00:43.3]} 21... Bxf5 {[%clk 0:00:33.2]} 22. Bg2
{[%clk 0:00:26.8]} 22... Be6 {[%clk 0:00:27.1]} 23. b4 {[%clk 0:00:26.1]} 23...
Qxb4 {[%clk 0:00:20]} 24. Rb1 {[%clk 0:00:25.3]} 24... Qc5 {[%clk 0:00:17.5]}
25. Qb3 {[%clk 0:00:23.9]} 25... Rd7 {[%clk 0:00:06.7]} 26. Qb6 {[%clk
0:00:21.2]} 26... Qxb6 {[%clk 0:00:06.4]} 27. Rxb6 {[%clk 0:00:21.3]} 27... Nd8
{[%clk 0:00:04.7]} 28. Rfb1 {[%clk 0:00:18.1]} 28... Re7 {[%clk 0:00:01.5]} 29.
Bd6 {[%clk 0:00:15.3]} 1-0

[Event "*** SCC Grand Prix: Titled Tuesday Blitz"]
[Site "Chess.com"]
[Date "2020.06.02"]
[Round "8"]
[White "Everyfishknows"]
[Black "H16"]
[Result "0-1"]
[WhiteElo "2334"]
[BlackElo "2527"]
[TimeControl "180+1"]
[EndTime "11:36:23 PDT"]
[Termination "H16 won on time"]

1. Nf3 {[%clk 0:03:00.9]} 1... c5 {[%clk 0:02:57.2]} 2. c4 {[%clk 0:03:00.4]}
2... Nc6 {[%clk 0:02:54.4]} 3. d4 {[%clk 0:03:00.5]} 3... g6 {[%clk 0:02:54.9]}
4. e4 {[%clk 0:02:57.1]} 4... Bg7 {[%clk 0:02:47.7]} 5. Be3 {[%clk 0:02:56.7]}
5... Qb6 {[%clk 0:02:43.3]} 6. Qb3 {[%clk 0:02:14.4]} 6... cxd4 {[%clk
0:02:34.9]} 7. Qxb6 {[%clk 0:02:08.2]} 7... axb6 {[%clk 0:02:35.8]} 8. Bd2
{[%clk 0:02:05.3]} 8... Nf6 {[%clk 0:02:32.4]} 9. Bd3 {[%clk 0:02:03.3]} 9... d6
{[%clk 0:02:30.7]} 10. O-O {[%clk 0:01:48]} 10... e5 {[%clk 0:02:16.7]} 11. Na3
{[%clk 0:01:42.4]} 11... Ke7 {[%clk 0:02:15]} 12. Nb5 {[%clk 0:01:42.3]} 12...
Be6 {[%clk 0:02:07.3]} 13. Nc7 {[%clk 0:01:32.1]} 13... Rac8 {[%clk 0:02:06.2]}
14. Nd5+ {[%clk 0:01:32.4]} 14... Bxd5 {[%clk 0:02:05.3]} 15. cxd5 {[%clk
0:01:33.3]} 15... Nb8 {[%clk 0:01:58.9]} 16. Bb4 {[%clk 0:01:32.5]} 16... Nfd7
{[%clk 0:01:53.9]} 17. Bb5 {[%clk 0:01:18.3]} 17... Nc5 {[%clk 0:01:51.7]} 18.
Nd2 {[%clk 0:01:16.2]} 18... Nba6 {[%clk 0:01:46.8]} 19. Ba3 {[%clk 0:01:12.1]}
19... Nc7 {[%clk 0:01:33.4]} 20. Be2 {[%clk 0:00:54.8]} 20... Bh6 {[%clk
0:01:21.9]} 21. Nc4 {[%clk 0:00:54.6]} 21... Nxe4 {[%clk 0:01:21.7]} 22. Nxb6
{[%clk 0:00:39.8]} 22... Rcd8 {[%clk 0:01:21.7]} 23. f3 {[%clk 0:00:25.2]} 23...
Be3+ {[%clk 0:01:15.8]} 24. Kh1 {[%clk 0:00:25.6]} 24... Nf6 {[%clk 0:00:51.8]}
25. Bc4 {[%clk 0:00:17]} 25... h5 {[%clk 0:00:44.7]} 26. h4 {[%clk 0:00:16.4]}
26... g5 {[%clk 0:00:40.8]} 27. hxg5 {[%clk 0:00:15.7]} 27... Bxg5 {[%clk
0:00:41.7]} 28. g3 {[%clk 0:00:13.8]} 28... Be3 {[%clk 0:00:34.9]} 29. Kg2
{[%clk 0:00:13.6]} 29... Rdg8 {[%clk 0:00:31.4]} 30. Bd3 {[%clk 0:00:09.3]}
30... h4 {[%clk 0:00:29.2]} 31. g4 {[%clk 0:00:08.8]} 31... Nh5 {[%clk
0:00:26.1]} 32. Nc4 {[%clk 0:00:06.6]} 32... Nf4+ {[%clk 0:00:25.9]} 33. Kh2
{[%clk 0:00:07.3]} 33... Nb5 {[%clk 0:00:24.4]} 34. Bb4 {[%clk 0:00:02.4]} 34...
Nxd5 {[%clk 0:00:24.2]} 35. Be1 {[%clk 0:00:01.6]} 35... Nbc7 {[%clk 0:00:19.7]}
0-1

[Event "*** SCC Grand Prix: Titled Tuesday Blitz"]
[Site "Chess.com"]
[Date "2020.06.02"]
[Round "8"]
[White "OnatB"]
[Black "EfrenRamos1"]
[Result "0-1"]
[WhiteElo "2326"]
[BlackElo "2203"]
[TimeControl "180+1"]
[EndTime "11:36:23 PDT"]
[Termination "EfrenRamos1 won on time"]

1. e4 {[%clk 0:03:00.9]} 1... c5 {[%clk 0:02:54.4]} 2. Nf3 {[%clk 0:02:59.8]}
2... d6 {[%clk 0:02:53.9]} 3. Bb5+ {[%clk 0:02:59.2]} 3... Bd7 {[%clk
0:02:50.9]} 4. Bxd7+ {[%clk 0:02:59]} 4... Nxd7 {[%clk 0:02:51]} 5. O-O {[%clk
0:02:59.9]} 5... g6 {[%clk 0:02:50.4]} 6. c3 {[%clk 0:02:59.5]} 6... Bg7 {[%clk
0:02:50.3]} 7. d4 {[%clk 0:02:59.7]} 7... Qc7 {[%clk 0:02:44.4]} 8. Qe2 {[%clk
0:02:48.8]} 8... e6 {[%clk 0:02:43.3]} 9. Na3 {[%clk 0:02:31.1]} 9... a6 {[%clk
0:02:42.9]} 10. Bf4 {[%clk 0:02:29.8]} 10... b5 {[%clk 0:02:38.5]} 11. dxc5
{[%clk 0:02:25.2]} 11... Nxc5 {[%clk 0:02:36]} 12. Rad1 {[%clk 0:02:24.9]} 12...
e5 {[%clk 0:02:35]} 13. Bc1 {[%clk 0:02:15.6]} 13... Ne7 {[%clk 0:02:32.8]} 14.
h4 {[%clk 0:02:13.6]} 14... h6 {[%clk 0:02:30.4]} 15. h5 {[%clk 0:02:13]} 15...
g5 {[%clk 0:02:29.6]} 16. Nh2 {[%clk 0:02:12.1]} 16... O-O {[%clk 0:02:28.1]}
17. Nc2 {[%clk 0:02:06.1]} 17... f5 {[%clk 0:02:26.9]} 18. exf5 {[%clk
0:02:05.7]} 18... Nxf5 {[%clk 0:02:24.8]} 19. Ng4 {[%clk 0:02:01.4]} 19... Rad8
{[%clk 0:02:14.8]} 20. Nce3 {[%clk 0:01:59.1]} 20... Qf7 {[%clk 0:02:10.5]} 21.
Nd5 {[%clk 0:01:57.1]} 21... Ne6 {[%clk 0:02:01.5]} 22. Rd3 {[%clk 0:01:47.3]}
22... Nf4 {[%clk 0:02:00.9]} 23. Bxf4 {[%clk 0:01:43.4]} 23... gxf4 {[%clk
0:01:58.3]} 24. Rfd1 {[%clk 0:01:42.4]} 24... Rde8 {[%clk 0:01:54]} 25. Rh3
{[%clk 0:01:08.1]} 25... Kh8 {[%clk 0:01:45.9]} 26. Qe4 {[%clk 0:01:03.6]} 26...
a5 {[%clk 0:01:41.1]} 27. a4 {[%clk 0:00:59.5]} 27... bxa4 {[%clk 0:01:38.7]}
28. Ra1 {[%clk 0:00:59.3]} 28... Rb8 {[%clk 0:01:35.7]} 29. Ra2 {[%clk
0:00:55.8]} 29... Rb5 {[%clk 0:01:32.6]} 30. c4 {[%clk 0:00:54.5]} 30... Rb3
{[%clk 0:01:28.8]} 31. Rxb3 {[%clk 0:00:49.2]} 31... axb3 {[%clk 0:01:27.9]} 32.
Rxa5 {[%clk 0:00:50.1]} 32... Qxh5 {[%clk 0:01:23.5]} 33. Ra7 {[%clk 0:00:49.7]}
33... Qxg4 {[%clk 0:01:22]} 34. f3 {[%clk 0:00:40.9]} 34... Qg6 {[%clk
0:01:20.1]} 35. Rd7 {[%clk 0:00:36]} 35... Ra8 {[%clk 0:01:10.3]} 36. Qb1 {[%clk
0:00:23.4]} 36... Qg5 {[%clk 0:01:01.4]} 37. Rf7 {[%clk 0:00:16.7]} 37... Nh4
{[%clk 0:00:55.5]} 38. g4 {[%clk 0:00:06.3]} 38... Nxf3+ {[%clk 0:00:54.2]} 39.
Kf2 {[%clk 0:00:05.2]} 39... Qxg4 {[%clk 0:00:50.5]} 0-1